bitfinex/quotes_BTCUSD_20251010
["timestamp","ask_amount","ask_price","bid_price","bid_amount"]
[1760099860392,0.86995893,121740.0,121730.0,0.05430041]
[1760099861629,0.63815893,121740.0,121730.0,0.05430041]
[1760099861840,0.86995893,121740.0,121730.0,0.03038041]
[1760099862049,0.86995893,121740.0,121730.0,0.05324041]
[1760099862525,0.63815893,121740.0,121730.0,0.05324041]
[1760099862778,0.86995893,121740.0,121730.0,0.00237041]
[1760099862997,0.93815893,121740.0,121730.0,0.00237041]
[1760099863219,3.07131197,121740.0,121730.0,0.00237041]
[1760099863443,3.10732391,121740.0,121730.0,0.00237041]
[1760099863652,3.13202542,121740.0,121730.0,0.00237041]
[1760099864433,3.13202542,121740.0,121730.0,0.00137041]
[1760099865054,2.45152406,121740.0,121730.0,0.00137041]
[1760099865236,2.76888406,121740.0,121730.0,0.00137041]
[1760099865436,2.53704406,121740.0,121730.0,0.00137041]
[1760099865635,2.76888406,121740.0,121730.0,0.00137041]
[1760099865836,2.82160864,121740.0,121730.0,0.00137041]
[1760099866073,2.76888406,121740.0,121730.0,0.00137041]
[1760099866295,2.75349102,121740.0,121730.0,0.00137041]
[1760099866519,2.76887107,121740.0,121730.0,0.00137041]
[1760099867315,2.7457945,121740.0,121730.0,0.00137041]
[1760099867559,3.28151904,121740.0,121730.0,0.00137041]
[1760099868166,3.04967904,121740.0,121730.0,0.00137041]
[1760099868372,3.28151904,121740.0,121730.0,0.00137041]
[1760099869204,3.04967904,121740.0,121730.0,0.00137041]
[1760099869410,7.30722704,121740.0,121730.0,0.00137041]
[1760099869565,8.29408937,121740.0,121730.0,0.00137041]
[1760099869742,8.57284348,121740.0,121730.0,0.00137041]
[1760099870094,3.34100348,121740.0,121730.0,0.00137041]
[1760099870246,8.57288348,121740.0,121730.0,0.00137041]
[1760099871481,2.58845758,121740.0,121730.0,0.00137041]
[1760099871681,7.58845758,121740.0,121730.0,0.00137041]
[1760099872540,7.27105758,121740.0,121730.0,0.00137041]
[1760099872702,2.56216585,121740.0,121730.0,0.00137041]
[1760099872899,7.56216585,121740.0,121730.0,0.00137041]
[1760099873107,2.56216585,121740.0,121730.0,0.00137041]
[1760099873302,7.56216585,121740.0,121730.0,0.00137041]
[1760099873673,2.56216585,121740.0,121730.0,0.00137041]
[1760099873873,7.56216585,121740.0,121730.0,0.00137041]
[1760099875331,7.56214328,121740.0,121730.0,0.00137041]
[1760099875736,7.24474328,121740.0,121730.0,0.00137041]
[1760099875951,7.56218328,121740.0,121730.0,0.00137041]
[1760099877111,2.56218328,121740.0,121730.0,0.00137041]
[1760099877528,7.56218328,121740.0,121730.0,0.00137041]
[1760099877739,3.01088328,121740.0,121730.0,0.00137041]
[1760099878372,2.69344328,121740.0,121730.0,0.00137041]
[1760099878582,7.77900328,121740.0,121730.0,0.00137041]
[1760099878792,8.01088328,121740.0,121730.0,0.00137041]
[1760099879226,7.56218328,121740.0,121730.0,0.00137041]
[1760099879447,3.47171553,121700.0,121690.0,0.0004]
[1760099879662,5.82672611,121700.0,121690.0,0.00048257]
[1760099879881,4.89011352,121700.0,121690.0,0.00048257]
[1760099880092,5.09692852,121700.0,121690.0,0.00048257]
[1760099880301,5.61357723,121700.0,121690.0,0.00048257]
[1760099880490,1.86208823,121700.0,121690.0,0.00048257]
[1760099880738,5.85454423,121700.0,121690.0,0.00048257]
[1760099880956,6.10490364,121700.0,121690.0,0.00048257]
[1760099881223,6.35215864,121700.0,121690.0,0.00048257]
[1760099881447,6.93786164,121700.0,121690.0,0.00048257]
[1760099881698,7.17014164,121700.0,121690.0,0.00048257]
[1760099881897,1.93786164,121700.0,121690.0,0.00048257]
[1760099882112,7.17014164,121700.0,121690.0,0.00048257]
[1760099883248,7.19643337,121700.0,121690.0,0.00048257]
[1760099883467,8.16023689,121700.0,121690.0,0.00048257]
[1760099883686,7.92795689,121700.0,121690.0,0.00048257]
[1760099883907,8.1755979,121700.0,121690.0,0.00048257]
[1760099884520,0.76435204,121690.0,121680.0,0.0004]
[1760099884735,7.0325627,121690.0,121680.0,0.0004502]
[1760099884969,7.11568476,121690.0,121680.0,0.0004502]
[1760099885202,7.13103191,121690.0,121680.0,0.0004502]
[1760099885646,7.13103191,121690.0,121680.0,0.00301367]
[1760099886075,2.13103191,121690.0,121680.0,0.00301367]
[1760099886540,7.15574414,121690.0,121680.0,0.00301367]
[1760099887207,2.15574414,121690.0,121680.0,0.00301367]
[1760099887423,7.15574414,121690.0,121680.0,0.00301367]
[1760099888323,7.16374414,121690.0,121680.0,0.00301367]
[1760099888531,1.93138414,121690.0,121680.0,0.00301367]
[1760099888755,7.16374414,121690.0,121680.0,0.00301367]
[1760099888978,6.93138414,121690.0,121680.0,0.00301367]
[1760099889211,2.16374414,121690.0,121680.0,0.00301367]
[1760099889439,8.50534658,121690.0,121680.0,1e-08]
[1760099889654,8.54544456,121690.0,121680.0,1e-08]
[1760099889863,3.54644456,121690.0,121680.0,1e-08]
[1760099890119,8.54644456,121690.0,121680.0,1e-08]
[1760099890543,8.54744456,121690.0,121680.0,1e-08]
[1760099890967,8.54742716,121690.0,121680.0,1e-08]
[1760099891195,8.54746716,121690.0,121680.0,1e-08]
[1760099891430,3.31506716,121690.0,121680.0,1e-08]
[1760099891649,8.54746716,121690.0,121680.0,1e-08]
[1760099891865,3.54746537,121690.0,121680.0,1e-08]
[1760099892091,3.56964521,121690.0,121680.0,1e-08]
[1760099892310,8.33724521,121690.0,121680.0,1e-08]
[1760099892539,8.99756521,121690.0,121680.0,1e-08]
[1760099893707,3.99756521,121690.0,121680.0,1e-08]
[1760099893921,8.99756521,121690.0,121680.0,1e-08]
[1760099894386,9.02711505,121690.0,121680.0,1e-08]
[1760099894598,4.02711505,121690.0,121680.0,1e-08]
[1760099894804,8.36679505,121690.0,121680.0,1e-08]
[1760099895029,4.02707505,121690.0,121680.0,1e-08]
[1760099895285,9.02707505,121690.0,121680.0,1e-08]
[1760099895895,9.02711505,121690.0,121680.0,1e-08]
[1760099896311,3.36679505,121690.0,121680.0,1e-08]
[1760099896513,8.04109169,121690.0,121680.0,1e-08]
[1760099896728,8.03309169,121690.0,121680.0,1e-08]
[1760099897148,8.99689521,121690.0,121680.0,1e-08]
[1760099897357,8.03309169,121690.0,121680.0,1e-08]
[1760099897562,7.69077169,121690.0,121680.0,1e-08]
[1760099898181,2.69077169,121690.0,121680.0,1e-08]
[1760099898419,7.70885716,121690.0,121680.0,1e-08]
[1760099898843,7.68637675,121690.0,121680.0,1e-08]
[1760099899055,2.68637675,121690.0,121680.0,1e-08]
[1760099899266,7.68637675,121690.0,121680.0,1e-08]
[1760099900321,2.65682691,121690.0,121680.0,1e-08]
[1760099900521,7.65682691,121690.0,121680.0,1e-08]
[1760099901193,2.65682691,121690.0,121680.0,1e-08]
[1760099901426,7.65682691,121690.0,121680.0,1e-08]
[1760099901634,2.33886779,121690.0,121680.0,1e-08]
[1760099901847,7.66482779,121690.0,121680.0,1e-08]
[1760099903135,2.66482779,121690.0,121680.0,1e-08]
[1760099903317,7.66482779,121690.0,121680.0,1e-08]
[1760099903784,7.6873082,121690.0,121680.0,1e-08]
[1760099904000,2.6873082,121690.0,121680.0,1e-08]
[1760099904214,7.4549482,121690.0,121680.0,1e-08]
[1760099904419,7.6873082,121690.0,121680.0,1e-08]
[1760099904860,2.6873082,121690.0,121680.0,1e-08]
[1760099905321,7.6873082,121690.0,121680.0,1e-08]
[1760099905508,7.286733,121690.0,121680.0,1e-08]
[1760099905768,7.139973,121690.0,121680.0,1e-08]
[1760099905981,7.372293,121690.0,121680.0,1e-08]
[1760099906386,7.11749259,121690.0,121680.0,1e-08]
[1760099906635,2.34981259,121690.0,121680.0,1e-08]
[1760099906841,7.34982355,121690.0,121680.0,1e-08]
[1760099907253,2.39392655,121690.0,121680.0,1e-08]
[1760099907464,7.36452455,121690.0,121680.0,1e-08]
[1760099907664,7.417287,121690.0,121680.0,1e-08]
[1760099907873,2.36456242,121690.0,121680.0,1e-08]
[1760099908081,7.36456242,121690.0,121680.0,1e-08]
[1760099908656,2.38704283,121690.0,121680.0,1e-08]
[1760099909111,2.36456242,121690.0,121680.0,1e-08]
[1760099909319,7.36456242,121690.0,121680.0,1e-08]
[1760099909874,2.36456242,121690.0,121680.0,1e-08]
[1760099910281,7.36456242,121690.0,121680.0,1e-08]
[1760099911734,7.35658163,121690.0,121680.0,1e-08]
[1760099912127,2.35658163,121690.0,121680.0,1e-08]
[1760099912392,7.35658163,121690.0,121680.0,1e-08]
[1760099912595,7.35658398,121690.0,121680.0,1e-08]
[1760099912803,2.35658398,121690.0,121680.0,1e-08]
[1760099913046,7.35661899,121690.0,121680.0,1e-08]
[1760099913246,7.31251599,121690.0,121680.0,1e-08]
[1760099913493,7.35677335,121690.0,121680.0,1e-08]
[1760099913707,2.35677335,121690.0,121680.0,1e-08]
[1760099913925,7.35677335,121690.0,121680.0,1e-08]
[1760099914341,7.03886285,121690.0,121680.0,1e-08]
[1760099914698,7.35674285,121690.0,121680.0,1e-08]
[1760099914919,7.31247599,121690.0,121680.0,1e-08]
[1760099915289,7.12446705,121690.0,121680.0,1e-08]
[1760099915506,5.80436554,121680.0,121670.0,0.0004]
[1760099915715,7.17002536,121680.0,121670.0,0.00045021]
[1760099916140,7.17002536,121680.0,121670.0,0.00096305]
[1760099916563,7.17802536,121680.0,121670.0,0.00096305]
[1760099916885,7.20274213,121680.0,121670.0,0.00096305]
[1760099917101,7.20374213,121680.0,121670.0,0.00096305]
[1760099917312,7.20474213,121680.0,121670.0,0.00096305]
[1760099917536,2.20474213,121680.0,121670.0,0.00096305]
[1760099917753,6.97246213,121680.0,121670.0,0.00096305]
[1760099917947,7.20474213,121680.0,121670.0,0.00096305]
[1760099918185,2.20474213,121680.0,121670.0,0.00096305]
[1760099918326,7.20474213,121680.0,121670.0,0.00096305]
[1760099919210,2.20474213,121680.0,121670.0,0.00096305]
[1760099919443,7.20470213,121680.0,121670.0,0.00096305]
[1760099919877,1.97246213,121680.0,121670.0,0.00096305]
[1760099920077,7.20470213,121680.0,121670.0,0.00096305]
[1760099920283,7.24901741,121680.0,121670.0,0.00096305]
[1760099922242,2.24901741,121680.0,121670.0,0.00096305]
[1760099922687,7.24901741,121680.0,121670.0,0.00096305]
[1760099922900,7.01677741,121680.0,121670.0,0.00096305]
[1760099923351,7.24901741,121680.0,121670.0,0.00096305]
[1760099923580,2.24901741,121680.0,121670.0,0.00096305]
[1760099923799,7.24901741,121680.0,121670.0,0.00096305]
[1760099924010,2.24901741,121680.0,121670.0,0.00096305]
[1760099924216,7.2490312,121680.0,121670.0,0.00096305]
[1760099924478,7.27857649,121680.0,121670.0,0.00096305]
[1760099924882,2.27857649,121680.0,121670.0,0.00096305]
[1760099925104,6.08256056,121680.0,121670.0,0.00096305]
[1760099925273,2.04636408,121680.0,121670.0,0.00096305]
[1760099925483,7.36420408,121680.0,121670.0,0.00096305]
[1760099925683,1.86785912,121680.0,121670.0,0.01685305]
[1760099925921,1.86785912,121680.0,121670.0,0.05658736]
[1760099925922,0.83354702,121680.0,121670.0,0.05658736]
[1760099926128,1.098035,121680.0,121670.0,0.05658736]
[1760099926337,1.330315,121680.0,121670.0,0.05658736]
[1760099926540,1.244715,121680.0,121670.0,0.05144305]
[1760099926743,1.584755,121680.0,121670.0,0.05144305]
[1760099926953,1.56713743,121680.0,121670.0,0.05144305]
[1760099927206,1.26713743,121680.0,121670.0,0.05144305]
[1760099927573,1.03481743,121680.0,121670.0,0.05144305]
[1760099927779,1.26713743,121680.0,121670.0,0.05144305]
[1760099928198,1.25913743,121680.0,121670.0,0.05144305]
[1760099928643,1.02681743,121680.0,121670.0,0.05144305]
[1760099928917,1.25909743,121680.0,121670.0,0.05144305]
[1760099929121,1.02681743,121680.0,121670.0,0.02862305]
[1760099929326,1.02681743,121680.0,121670.0,0.05305305]
[1760099929522,0.93782959,121680.0,121670.0,0.05305305]
[1760099929759,0.93782959,121680.0,121670.0,0.02862305]
[1760099929958,0.70554959,121680.0,121670.0,0.02862305]
[1760099930135,0.93782959,121680.0,121670.0,0.02862305]
[1760099930710,1.36642507,121680.0,121670.0,0.02862305]
[1760099931348,1.35873086,121680.0,121670.0,0.02862305]
[1760099931563,1.12645086,121680.0,121670.0,0.02862305]
[1760099931986,1.35873086,121680.0,121670.0,0.02862305]
[1760099932239,1.11106243,121680.0,121670.0,0.02862305]
[1760099932445,1.34334243,121680.0,121670.0,0.05305305]
[1760099933302,1.34334243,121680.0,121670.0,0.68538704]
[1760099933303,0.04779541,121680.0,121670.0,0.68538704]
[1760099933515,0.21216095,121680.0,121670.0,0.24035366]
[1760099933739,0.21216095,121680.0,121670.0,0.05305305]
[1760099933953,0.87311643,121680.0,121670.0,0.00096305]
[1760099934379,0.64075643,121680.0,121670.0,0.00096305]
[1760099934599,2.02483397,121680.0,121670.0,0.00096305]
[1760099934836,3.75871011,121680.0,121670.0,0.00096305]
[1760099935075,7.20706606,121680.0,121670.0,0.00096305]
[1760099935292,6.97458606,121680.0,121670.0,0.00096305]
[1760099935497,7.20706606,121680.0,121670.0,0.00096305]
[1760099936635,2.20706606,121680.0,121670.0,0.00096305]
[1760099936852,7.18077433,121680.0,121670.0,0.00096305]
[1760099937064,6.94829433,121680.0,121670.0,0.00096305]
[1760099937479,6.92581392,121680.0,121670.0,0.00096305]
[1760099937692,7.15829392,121680.0,121670.0,0.00096305]
[1760099937902,2.15829392,121680.0,121670.0,0.00096305]
[1760099938115,7.15829392,121680.0,121670.0,0.00096305]
[1760099938523,2.15829392,121680.0,121670.0,0.00096305]
[1760099939176,7.15829392,121680.0,121670.0,0.00096305]
[1760099939580,2.15829392,121680.0,121670.0,0.00096305]
[1760099939756,7.15829392,121680.0,121670.0,0.00096305]
[1760099939960,1.84021392,121680.0,121670.0,0.00096305]
[1760099940184,6.90410792,121680.0,121670.0,0.00096305]
[1760099940420,6.83892992,121680.0,121670.0,0.00096305]
[1760099940549,6.94090492,121680.0,121670.0,0.00096305]
[1760099940788,6.95052992,121680.0,121670.0,0.00096305]
[1760099940998,1.48954388,121680.0,121670.0,0.00096305]
[1760099941210,1.41161856,121680.0,121670.0,0.00096305]
[1760099941416,3.41979856,121680.0,121670.0,0.00096305]
[1760099941611,1.72973856,121680.0,121670.0,0.00096305]
[1760099941808,3.66588656,121680.0,121670.0,0.00096305]
[1760099942011,3.67450188,121680.0,121670.0,0.00096305]
[1760099942214,3.69841588,121680.0,121670.0,0.00096305]
[1760099942459,3.20217888,121680.0,121670.0,0.00096305]
[1760099942667,3.50447288,121680.0,121670.0,0.00096305]
[1760099942865,1.48954388,121680.0,121670.0,0.00096305]
[1760099943120,3.77564388,121680.0,121670.0,0.00096305]
[1760099943321,3.54308588,121680.0,121670.0,0.00096305]
[1760099943472,1.72206388,121680.0,121670.0,0.00096305]
[1760099943718,3.78604288,121680.0,121670.0,0.00096305]
[1760099943921,3.80342288,121680.0,121670.0,0.00096305]
[1760099944274,3.95342388,121680.0,121670.0,0.00096305]
[1760099944478,1.72206388,121680.0,121670.0,0.00096305]
[1760099944778,3.70802288,121680.0,121670.0,0.00096305]
[1760099944974,3.89075088,121680.0,121670.0,0.00096305]
[1760099945233,1.72206388,121680.0,121670.0,0.00096305]
[1760099945641,3.93888588,121680.0,121670.0,0.00096305]
[1760099945843,3.70636588,121680.0,121670.0,0.00096305]
[1760099946070,3.93888588,121680.0,121670.0,0.00096305]
[1760099946278,1.72206388,121680.0,121670.0,0.00096305]
[1760099946481,3.94688788,121680.0,121670.0,0.00096305]
[1760099946712,1.73006388,121680.0,121670.0,0.00096305]
[1760099946931,0.66799858,121680.0,121670.0,0.04011305]
[1760099947186,0.32029995,121680.0,121670.0,0.23759261]
[1760099947461,0.52016095,121680.0,121670.0,0.07321356]
[1760099947690,0.75272095,121680.0,121670.0,0.07321356]
[1760099947915,0.75272095,121680.0,121670.0,0.23759261]
[1760099949058,0.75272095,121680.0,121670.0,0.07321356]
[1760099949291,0.52016095,121680.0,121670.0,0.07321356]
[1760099949506,0.75272095,121680.0,121670.0,0.05161305]
[1760099949933,0.75272095,121680.0,121670.0,0.2159921]
[1760099951940,0.45272095,121680.0,121670.0,0.2159921]
[1760099952108,0.22016095,121680.0,121670.0,0.2159921]
[1760099952341,0.45272095,121680.0,121670.0,0.25518052]
[1760099952505,0.44472095,121680.0,121670.0,0.25518052]
[1760099952696,0.21216095,121680.0,121670.0,0.09080147]
[1760099952906,0.44472095,121680.0,121670.0,0.05161305]
[1760099953249,0.21216095,121680.0,121670.0,0.02767305]
[1760099953585,0.44472095,121680.0,121670.0,0.02767305]
[1760099954314,0.21216095,121680.0,121670.0,0.02767305]
[1760099954543,0.87331643,121680.0,121670.0,0.05161305]
[1760099954968,0.21216095,121680.0,121670.0,0.02767305]
[1760099955210,0.64075643,121680.0,121670.0,0.02767305]
[1760099955443,0.87331643,121680.0,121670.0,0.02767305]
[1760099956102,0.64075643,121680.0,121670.0,0.02767305]
[1760099956304,0.64075643,121680.0,121670.0,0.01246305]
[1760099956519,0.87327643,121680.0,121670.0,0.00096305]
[1760099956845,1.38499397,121680.0,121670.0,0.00096305]
[1760099957063,1.99974838,121680.0,121670.0,0.00096305]
[1760099957473,2.23226838,121680.0,121670.0,0.00096305]
[1760099957901,2.23234838,121680.0,121670.0,0.00096305]
[1760099958125,1.99974838,121680.0,121670.0,0.00096305]
[1760099958336,2.23230838,121680.0,121670.0,0.00096305]
[1760099958960,6.81495438,121680.0,121670.0,0.00096305]
[1760099959163,7.08438026,121680.0,121670.0,0.00096305]
[1760099959407,6.88421176,121680.0,121670.0,0.00096305]
[1760099959605,7.11681176,121680.0,121670.0,0.00096305]
[1760099959780,2.11681176,121680.0,121670.0,0.00096305]
[1760099960014,7.11681176,121680.0,121670.0,0.00096305]
[1760099960190,6.88421176,121680.0,121670.0,0.00096305]
[1760099960399,7.11681176,121680.0,121670.0,0.00096305]
[1760099960607,6.88421176,121680.0,121670.0,0.00096305]
[1760099960812,1.86269638,121680.0,121670.0,0.00096305]
[1760099961013,7.09525638,121680.0,121670.0,0.00096305]
[1760099961239,7.08758165,121680.0,121670.0,0.00096305]
[1760099962903,1.85502165,121680.0,121670.0,0.00096305]
[1760099963090,7.06510124,121680.0,121670.0,0.00096305]
[1760099963954,2.06510124,121680.0,121670.0,0.00096305]
[1760099964197,1.2155841,121680.0,121670.0,0.00096305]
[1760099964402,7.08077506,121680.0,121670.0,0.00096305]
[1760099964608,1.84821506,121680.0,121670.0,0.00096305]
[1760099964812,7.07310124,121680.0,121670.0,0.00096305]
[1760099965019,2.07310124,121680.0,121670.0,0.00096305]
[1760099965439,7.07310124,121680.0,121670.0,0.00096305]
[1760099965892,2.44854378,121680.0,121670.0,0.00096305]
[1760099966109,2.79461749,121680.0,121670.0,0.02767305]
[1760099966354,1.39003849,121680.0,121670.0,0.02767305]
[1760099966579,1.39003849,121680.0,121670.0,0.05042353]
[1760099966580,2.68366349,121680.0,121670.0,0.05042353]
[1760099966791,2.33238443,121680.0,121670.0,0.05042353]
[1760099967045,2.56498443,121680.0,121670.0,0.02767305]
[1760099967786,2.27542043,121680.0,121670.0,0.02767305]
[1760099968015,2.23763943,121680.0,121670.0,0.02767305]
[1760099968279,2.23763943,121680.0,121670.0,0.00096305]
[1760099968507,2.47023943,121680.0,121670.0,0.00096305]
[1760099968736,2.23763943,121680.0,121670.0,0.00096305]
[1760099969001,2.41655643,121680.0,121670.0,0.01617305]
[1760099970580,2.18395643,121680.0,121670.0,0.01617305]
[1760099970792,2.18395643,121680.0,121670.0,0.00096305]
[1760099971007,2.41651643,121680.0,121670.0,0.00096305]
[1760099972480,2.18395643,121680.0,121670.0,0.01617305]
[1760099972627,2.41651643,121680.0,121670.0,0.01617305]
[1760099974313,2.18395643,121680.0,121670.0,0.01617305]
[1760099974507,2.41647643,121680.0,121670.0,0.01617305]
[1760099974713,2.18395643,121680.0,121670.0,0.01617305]
[1760099974919,2.41647643,121680.0,121670.0,0.01617305]
[1760099977911,2.18395643,121680.0,121670.0,0.02800305]
[1760099978121,2.37001543,121680.0,121670.0,0.05226305]
[1760099978824,2.35837443,121680.0,121670.0,0.05226305]
[1760099978966,2.12585443,121680.0,121670.0,0.05226305]
[1760099979400,2.35833443,121680.0,121670.0,0.05226305]
[1760099979597,2.12585443,121680.0,121670.0,0.05226305]
[1760099979803,2.35833443,121680.0,121670.0,0.05226305]
[1760099980863,2.35833443,121680.0,121670.0,0.02800305]
[1760099981756,2.12585443,121680.0,121670.0,0.02800305]
[1760099981971,2.35833443,121680.0,121670.0,0.02800305]
[1760099985097,2.35829443,121680.0,121670.0,0.02800305]
[1760099988851,1.69725895,121680.0,121670.0,0.02800305]
[1760099989059,1.68167595,121680.0,121670.0,0.07470854]
[1760099989287,1.91407595,121680.0,121670.0,0.07470854]
[1760099989561,1.89550174,121680.0,121670.0,0.07470854]
[1760099991850,1.89550174,121680.0,121670.0,0.05189305]
[1760099992671,1.66310174,121680.0,121670.0,0.05189305]
[1760099992869,1.89554174,121680.0,121670.0,0.05189305]
[1760099997007,1.89550174,121680.0,121670.0,0.05189305]
[1760099998363,1.66310174,121680.0,121670.0,0.05189305]
[1760099998576,1.89550174,121680.0,121670.0,0.2162721]
[1760099999846,1.89550174,121680.0,121670.0,0.05189305]
[1760100000059,1.66310174,121680.0,121670.0,0.2162721]
[1760100000268,1.34167595,121680.0,121670.0,0.2162721]
[1760100000475,1.89546174,121680.0,121670.0,0.2162721]
[1760100001354,1.66310174,121680.0,121670.0,0.2162721]
[1760100001562,1.89546174,121680.0,121670.0,0.25548849]
[1760100002014,0.04779541,121680.0,121670.0,0.57691428]
[1760100002452,0.04779541,121680.0,121670.0,0.98146213]
[1760100002671,0.04779541,121680.0,121670.0,1.21394213]
[1760100003117,0.04679541,121680.0,121670.0,1.21394213]
[1760100003566,0.04579541,121680.0,121670.0,0.66003634]
[1760100003785,0.04579541,121680.0,121670.0,0.89251634]
[1760100005743,0.04579541,121680.0,121670.0,0.90063517]
[1760100005950,0.04579541,121680.0,121670.0,1.22202096]
[1760100006577,0.04579541,121680.0,121670.0,1.04978457]
[1760100007019,0.04579541,121680.0,121670.0,1.28222457]
[1760100008947,0.04566537,121680.0,121670.0,1.04978457]
[1760100009362,0.04566537,121680.0,121670.0,1.28218457]
[1760100011310,0.04566537,121680.0,121670.0,0.96075878]
[1760100012419,0.04566537,121680.0,121670.0,0.95259995]
[1760100013505,0.04566537,121680.0,121670.0,0.89239634]
[1760100013956,0.04566537,121680.0,121670.0,0.57097055]
[1760100014170,0.04566537,121680.0,121670.0,0.89239634]
[1760100015366,0.02066537,121680.0,121670.0,1.67303982]
[1760100015605,0.00137107,121700.0,121690.0,0.16435204]
[1760100015815,0.00137107,121700.0,121690.0,1.18437143]
[1760100016043,0.00137107,121700.0,121690.0,1.20767623]
[1760100016485,0.00137107,121700.0,121690.0,1.20771623]
[1760100016705,0.00137107,121700.0,121690.0,0.97531623]
[1760100016922,0.00137107,121700.0,121690.0,1.20771623]
[1760100018622,0.00137107,121700.0,121690.0,0.65389044]
[1760100018833,0.00137107,121700.0,121690.0,0.33246465]
[1760100019054,0.00137107,121700.0,121690.0,0.5319541]
[1760100019269,0.00137107,121700.0,121690.0,0.85341989]
[1760100019936,0.00137107,121700.0,121690.0,0.62101989]
[1760100020164,0.00137107,121700.0,121690.0,0.85341989]
[1760100020287,0.00137107,121700.0,121690.0,0.93341669]
[1760100022798,0.00137107,121700.0,121690.0,0.6119909]
[1760100023007,0.00137107,121700.0,121690.0,0.93341669]
[1760100023446,0.00137107,121700.0,121690.0,0.70101669]
[1760100023658,0.00137107,121700.0,121690.0,1.25480248]
[1760100024084,0.00137107,121700.0,121690.0,1.28495438]
[1760100025350,0.00137107,121700.0,121690.0,1.37055438]
[1760100025568,0.00137107,121700.0,121690.0,0.4953028]
[1760100025787,0.00137107,121700.0,121690.0,1.37055438]
[1760100026969,0.00137107,121700.0,121690.0,1.37155438]
[1760100027909,0.00137107,121700.0,121690.0,1.28599438]
[1760100028138,0.00137107,121700.0,121690.0,1.37155438]
[1760100029509,0.00137107,121700.0,121690.0,1.05359438]
[1760100029727,0.00137107,121700.0,121690.0,1.37151438]
[1760100030174,0.00137107,121700.0,121690.0,1.28595438]
[1760100030415,0.00137107,121700.0,121690.0,1.37151438]
[1760100030837,0.00137107,121700.0,121690.0,1.05359438]
[1760100031062,0.00137107,121700.0,121690.0,1.37151438]
[1760100031949,0.00137107,121700.0,121690.0,1.05359438]
[1760100032163,0.00137107,121700.0,121690.0,1.37147438]
[1760100032372,0.00137107,121700.0,121690.0,1.05359438]
[1760100032796,0.00137107,121700.0,121690.0,0.3861541]
[1760100033043,0.00137107,121700.0,121690.0,0.93989989]
[1760100033701,0.00137107,121700.0,121690.0,1.02900568]
[1760100033934,0.00137107,121700.0,121690.0,1.26132568]
[1760100034266,0.00137107,121700.0,121690.0,1.17576568]
[1760100034479,0.00137107,121700.0,121690.0,1.34132248]
[1760100036073,0.00137107,121700.0,121690.0,1.02344248]
[1760100036296,0.00137107,121700.0,121690.0,1.34136248]
[1760100036953,0.00137107,121700.0,121690.0,0.4661509]
[1760100037142,0.00137107,121700.0,121690.0,0.70201669]
[1760100037360,0.00137107,121700.0,121690.0,1.01989669]
[1760100039853,0.00137107,121700.0,121690.0,0.3005941]
[1760100040076,0.00137107,121700.0,121690.0,0.62201989]
[1760100040522,0.00137107,121700.0,121690.0,0.85437989]
[1760100041351,0.00137107,121700.0,121690.0,0.62201989]
[1760100041563,0.00137107,121700.0,121690.0,0.3005941]
[1760100041815,0.00137107,121700.0,121690.0,0.90308665]
[1760100043401,0.00137107,121700.0,121690.0,0.67076665]
[1760100043623,0.00137107,121700.0,121690.0,1.02234434]
[1760100043843,0.00137107,121700.0,121690.0,1.25470434]
[1760100044062,0.00137107,121700.0,121690.0,1.02234434]
[1760100044274,0.00137107,121700.0,121690.0,1.91613013]
[1760100044490,1e-08,121700.0,121690.0,1.91613013]
[1760100044706,1e-08,121700.0,121690.0,1.94082668]
[1760100044920,1e-08,121700.0,121690.0,2.04082667]
[1760100045596,1e-08,121700.0,121690.0,2.03982667]
[1760100045837,1e-08,121700.0,121690.0,2.04082667]
[1760100046060,1e-08,121700.0,121690.0,1.48704088]
[1760100046269,1e-08,121700.0,121690.0,1.80600088]
[1760100047986,1e-08,121700.0,121690.0,1.89502667]
[1760100048201,1e-08,121700.0,121690.0,2.12742667]
[1760100049709,1e-08,121700.0,121690.0,1.59116855]
[1760100049916,1e-08,121700.0,121690.0,1.61616854]
[1760100053294,1e-08,121700.0,121690.0,1.29820854]
[1760100053743,0.61222888,121750.0,121730.0,0.16429099]
[1760100053962,0.61991019,121750.0,121730.0,0.42954947]
[1760100054170,0.61991019,121750.0,121730.0,0.46484947]
[1760100054421,0.59636019,121750.0,121730.0,0.46484947]
[1760100054636,0.59636019,121750.0,121730.0,0.42389803]
[1760100054637,0.61021375,121740.0,121730.0,0.42389803]
[1760100054854,0.61842797,121740.0,121730.0,0.42389803]
[1760100055067,0.61847824,121740.0,121730.0,0.42389803]
[1760100057449,0.61847824,121740.0,121730.0,0.01152]
[1760100057681,0.16429803,121730.0,121720.0,0.0353]
[1760100057897,0.16431153,121720.0,121710.0,0.17584503]
[1760100058144,0.64206078,121720.0,121710.0,0.2324]
[1760100058613,0.16432503,121710.0,121700.0,0.40837853]
[1760100058820,0.16432503,121710.0,121700.0,0.01152]
[1760100058821,0.59924428,121710.0,121700.0,0.01152]
[1760100059038,0.61510428,121710.0,121700.0,0.25972]
[1760100059261,0.18708503,121710.0,121700.0,0.25972]
[1760100059523,0.91510428,121710.0,121700.0,0.0272]
[1760100059982,0.89924428,121710.0,121700.0,0.21531853]
[1760100060187,0.91510428,121710.0,121700.0,0.19153853]
[1760100060632,0.91510428,121710.0,121700.0,0.0282]
[1760100061089,0.91510428,121710.0,121700.0,0.0272]
[1760100061327,0.89924428,121710.0,121700.0,0.21531853]
[1760100061763,0.91510428,121710.0,121700.0,0.05098]
[1760100061949,0.91510428,121710.0,121700.0,0.0272]
[1760100062643,0.91510428,121710.0,121690.0,0.01152]
[1760100062858,0.16435204,121690.0,121680.0,0.00137118]
[1760100063072,0.83554129,121690.0,121680.0,0.00137118]
[1760100063288,0.85193129,121690.0,121680.0,0.01775118]
[1760100063964,0.85193129,121690.0,121680.0,0.00137118]
[1760100064176,0.61909129,121690.0,121680.0,0.00142139]
[1760100064390,1.28370129,121690.0,121680.0,0.00242139]
[1760100064652,1.51654129,121690.0,121680.0,0.00242139]
[1760100064865,1.08852204,121690.0,121680.0,0.00242139]
[1760100065079,1.51654129,121690.0,121680.0,0.00242139]
[1760100065473,1.09696272,121690.0,121680.0,0.00242139]
[1760100066111,1.34350272,121690.0,121680.0,0.00242139]
[1760100066749,1.34350272,121690.0,121680.0,0.00142139]
[1760100067686,1.9749573,121690.0,121680.0,0.00142139]
[1760100068514,1.9749973,121690.0,121680.0,0.00142139]
[1760100068922,2.05811936,121690.0,121680.0,0.00142139]
[1760100069981,2.14367936,121690.0,121680.0,0.00142139]
[1760100070291,4.74388436,121690.0,121680.0,0.00142139]
[1760100070494,4.65832436,121690.0,121680.0,0.00142139]
[1760100070707,4.74388436,121690.0,121680.0,0.00142139]
[1760100070904,3.79398978,121690.0,121680.0,0.00142139]
[1760100071106,4.65832436,121690.0,121680.0,0.00142139]
[1760100071331,4.74388436,121690.0,121680.0,0.00142139]
[1760100073916,4.65832436,121690.0,121680.0,0.00142139]
[1760100074095,4.74388436,121690.0,121680.0,0.00142139]